Cogmind - Beta 14 @@@ ROGUE MODE // 2024.09.02 @ 11:09:45 Player: jimmyl Result: Destroyed by B-75 Beast with Heavy Machine Gun Performance ------------- Evolutions (3) 1500 Regions Visited (10) 2000 Robots Destroyed (118) 590 Value Destroyed (4906) 4906 Prototype IDs (5) 100 Alien Tech Used (0) 0 Bonus (2940) 2940 TOTAL SCORE: 12036 Bonus ------- High Alert Combat Kills 1293 Follower Combat Kills 448 Entered Garrisons 200 Used RIF Installer 1000 Friendly Fire -1 Cogmind --------- Core Integrity 0/700 Matter 230/300 Energy 150/160 System Corruption 1% Temperature Cool (6) Movement Walking (186) Ox1 Location -6/Proximity Caves Parts ------- > --- POWER (2) -------- Light Nuclear Core > --- PROPULSION (3) --- Flexi-carbon Leg Armored Leg Improved VSS Leg > --- UTILITY (6) ------ High-capacity Storage Unit Advanced Visual Processing Unit Relay Coupler [Swarmer] (16) Relay Coupler [Grunt] (25) Relay Coupler [Duelist] (18) Relay Coupler [Sentry] (10) > --- WEAPON (2) ------- Bore Cannon Remote Datajack > --- INVENTORY (20) --- Micro Nuclear Core Micro Fission Core Improved Heat Sink Cooling System Cargo Storage Unit Improved Signal Interpreter Graphene Brace Remote Shield Relay Coupler [Sentry] (18) Gatling Laser Heavy Plasma Cannon Long-range Missile Launcher Molecular Deconstructor CR-A16's Pointy Stick Self-destruct Interrupter (50) Peak State ------------ > --- POWER ------------ Light Quantum Reactor > --- PROPULSION ------- Flexi-carbon Leg Armored Leg Improved VSS Leg > --- UTILITY ---------- Improved Heat Sink High-capacity Storage Unit Advanced Visual Processing Unit Relay Coupler [Swarmer] Relay Coupler [Duelist] Relay Coupler [Hunter] > --- WEAPON ----------- Precision Assault Rifle Remote Datajack > --- INVENTORY -------- Micro Nuclear Core Micro Fission Core Carbon-fiber Leg Improved Heat Sink Cooling System Cargo Storage Unit Graphene Brace Remote Shield Relay Coupler [Grunt] Relay Coupler [Grunt] Relay Coupler [Sentry] Relay Coupler [Sentry] Gatling Laser Bore Cannon Long-range Missile Launcher Molecular Deconstructor CR-A16's Pointy Stick Self-destruct Interrupter [Rating: 59] Favorites ----------- Power Light Quantum Reactor Engine Improved Ion Engine Power Core Nuclear Core Reactor Light Quantum Reactor Propulsion Light Treads Treads Light Treads Leg Carbon-fiber Leg Wheel Compact Wheel Utility High-capacity Storage Unit Device Improved Heat Sink Storage High-capacity Storage Unit Processor Signal Interpreter Hackware Relay Coupler [Swarmer] Protection Medium Armor Plating Weapon Enhanced Autogun Energy Gun Beam Rifle Ballistic Gun Enhanced Autogun Ballistic Cannon Bore Cannon Launcher Mini Grenade Launcher Special Weapon Remote Datajack Slashing Weapon Blade Saw Build | -11 -10 -9 -8 -7 -7 -7 -7 -7 -7 -6 ------- Run | Yrd Mat Mat Mat Fac Gar Fac Low Low Zio Pro Slots Evolved 6 | . . 2 2 2 . . . . . . Power 1 | . . . . 1 . . . . . . Propulsion 1 | . . . 1 . . . . . . . Utility 4 | . . 2 1 1 . . . . . . Weapon . | . . . . . . . . . . . Parts Attached 122 | . 4 13 36 5 37 1 17 3 . 6 Power 7 | . . 2 1 . 3 . . . . 1 Engine 3 | . . 2 . . 1 . . . . . Core 3 | . . . 1 . 1 . . . . 1 Reactor 1 | . . . . . 1 . . . . . Propulsion 34 | . 2 3 10 3 10 . 3 2 . 1 Treads 27 | . 2 3 10 3 9 . . . . . Leg 6 | . . . . . . . 3 2 . 1 Wheel 1 | . . . . . 1 . . . . . Hover . | . . . . . . . . . . . Flight . | . . . . . . . . . . . Utility 24 | . 2 3 5 2 5 1 2 1 . 3 Device 8 | . . 1 3 1 3 . . . . . Storage 2 | . 1 . 1 . . . . . . . Processor 4 | . . 2 1 1 . . . . . . Hackware 8 | . . . . . 1 1 2 1 . 3 Protection 2 | . 1 . . . 1 . . . . . Artifact . | . . . . . . . . . . . Weapon 57 | . . 5 20 . 19 . 12 . . 1 Energy Gun 8 | . . 2 2 . 2 . 2 . . . Energy Cannon . | . . . . . . . . . . . Ballistic Gun 27 | . . 3 12 . 12 . . . . . Ballistic Cannon 2 | . . . . . . . 1 . . 1 Launcher 12 | . . . 6 . 2 . 4 . . . Special Weapon 6 | . . . . . 1 . 5 . . . Impact Weapon . | . . . . . . . . . . . Slashing Weapon 2 | . . . . . 2 . . . . . Piercing Weapon . | . . . . . . . . . . . Special Melee Weapon . | . . . . . . . . . . . Unidentified Prototypes 5 | . . . 2 . 3 . . . . . Parts Lost 41 | . . 8 7 . 19 . 4 1 . 2 Power 6 | . . 1 1 . 2 . 1 . . 1 Propulsion 18 | . . 3 3 . 9 . 2 1 . . Utility 9 | . . 1 2 . 4 . 1 . . 1 Weapon 8 | . . 3 1 . 4 . . . . . Highest Loss Streak 7 | . . 6 5 . 7 . 3 1 . 2 To Critical Strikes 1 | . . . . . . . . 1 . . Average Slot Usage (%) 90 | . 96 89 96 90 86 100 82 88 92 91 Engine 3 | . 14 10 6 . 2 . . . . . Core 2 | . . . 2 7 3 7 1 . . 1 Reactor 2 | . . . . . . 7 7 7 7 5 Treads 16 | . 23 21 26 22 16 23 4 . . . Leg 5 | . 4 . . . . . 16 22 23 23 Wheel 1 | . . . . . 3 . . . . . Device 10 | . . 7 12 14 13 7 7 7 7 5 Storage 8 | . 18 11 9 7 7 7 7 7 7 7 Processor 16 | . . 17 20 23 22 15 8 7 7 7 Hackware 5 | . . . . . . 14 12 20 23 24 Ballistic Gun 12 | . 28 14 16 15 11 7 7 7 7 6 Special Weapon 2 | . . . . . 1 7 6 7 7 7 Peak Build Rating 59 | 6 8 14 31 37 47 47 51 57 57 59 Average Rating 34 | 6 7 9 25 33 33 44 46 52 57 56 On Entrance 32 | 6 6 8 14 31 37 47 44 49 57 57 Naked Turns . | . . . . . . . . . . . Heaviest Build 69 | 13 20 20 58 55 69 69 69 63 63 63 Greatest Support 60 | 20 40 40 60 60 60 60 60 50 50 51 Greatest Overweight (x) 14 | . . . . . 14 1 4 2 1 1 Average Overweight (x) . | . . . . . . 1 1 1 1 . Largest Inventory Capacity 20 | 8 8 8 20 20 20 20 20 20 20 20 Average Capacity 18 | 8 8 8 17 20 20 20 20 20 20 20 Most Carried 20 | 6 7 8 20 18 20 18 20 19 20 20 Average Carried 14 | 6 6 6 15 17 14 17 18 17 19 19 Final Capacity 20 | 8 8 8 20 20 20 20 20 20 20 20 Final Carried 20 | 6 7 8 18 16 17 17 18 19 20 17 Class Distribution -------------------- 43% | Scavenger-Mutant 33% | Bothacker-Mutant 10% | Mutant 9% | Skirmisher 3% | Scavenger-Skirmisher Dominant Class ---------------- Mutant | -10/Materials Scavenger-Mutant | -9/Materials Scavenger-Mutant | -8/Materials Scavenger-Skirmisher | -7/Factory Scavenger-Mutant | -7/Garrison Bothacker-Mutant | -7/Factory Bothacker-Mutant | -7/Lower Caves Bothacker-Mutant | -7/Lower Caves Bothacker-Mutant | -7/Zion Bothacker-Mutant | -6/Proximity Caves Resources | -11 -10 -9 -8 -7 -7 -7 -7 -7 -7 -6 ----------- Run | Yrd Mat Mat Mat Fac Gar Fac Low Low Zio Pro Matter Collected 3585 | 200 118 269 1146 162 1143 13 263 174 . 97 Remotely 574 | . . 185 389 . . . . . . . Salvage Created 4442 | . 154 351 1766 207 1672 . 238 54 . . Parts 249 | . 12 26 107 9 80 . 13 2 . . Haulers Intercepted 2 | . . . 2 . . . . . . . Recyclers Shooed 1 | . . 1 . . . . . . . . Parts Field Recycled . | . . . . . . . . . . . Retrieved Matter . | . . . . . . . . . . . Parts Self-Destructed 22 | . . . . . . . 8 12 . 2 Prevented 3 | . . . . . . . 3 . . . Kills | -11 -10 -9 -8 -7 -7 -7 -7 -7 -7 -6 ------- Run | Yrd Mat Mat Mat Fac Gar Fac Low Low Zio Pro Combat Hostiles Destroyed 107 | . 6 10 46 4 32 . 8 1 . . Guns 71 | . 6 10 21 4 27 . 2 1 . . Cannons 1 | . . . . . . . 1 . . . AOE 35 | . . . 25 . 5 . 5 . . . Classes Destroyed 15 | . 2 3 8 . 2 . . . . . Worker 1 | . . . 1 . . . . . . . Builder 1 | . . . 1 . . . . . . . Hauler 2 | . . . 2 . . . . . . . Recycler 2 | . . 1 1 . . . . . . . Operator 1 | . . . 1 . . . . . . . Watcher 4 | . . 1 3 . . . . . . . Swarmer 24 | . 3 7 11 . . . 3 . . . Cutter 3 | . . . . . 3 . . . . . Grunt 47 | . 3 . 18 3 21 . 1 1 . . Brawler 3 | . . . 3 . . . . . . . Duelist 5 | . . . 3 1 1 . . . . . Protector 1 | . . . 1 . . . . . . . Sentry 18 | . . 3 9 . 6 . . . . . Programmer 2 | . . . . . 1 . 1 . . . Heavy 1 | . . . 1 . . . . . . . Thug 3 | . . . . . . . 3 . . . Best Kill Streak 8 | . 3 6 8 4 8 . 3 1 . . Combat Bots Only 8 | . 3 5 6 4 8 . 3 1 . . Max Kills in Single Turn 3 | . 1 1 3 1 2 . 2 1 . . Gunslinging 1 | . . . . . 1 . . . . . Exploded 3 | . . . 3 . 1 . 2 . . . Melee . | . . . . . . . . . . . Uniques/NPCs Destroyed . | . . . . . . . . . . . Combat | -11 -10 -9 -8 -7 -7 -7 -7 -7 -7 -6 -------- Run | Yrd Mat Mat Mat Fac Gar Fac Low Low Zio Pro Hostile Shots Fired 784 | . 55 120 154 20 364 . 43 2 . 26 Missed 263 | . 12 30 57 5 136 . 17 . . 6 Damage Taken 7459 | . 401 1037 1844 288 2979 34 444 75 . 357 Core 1318 | . 62 227 308 32 479 . 104 18 . 88 Absorbed by Shields . | . . . . . . . . . . . Core Remaining (%) 65 | 100 75 43 44 . . . . . . . Volleys Fired 384 | . 29 64 106 13 122 2 25 5 . 18 Largest 2 | . 2 2 2 2 2 1 2 1 . 1 Hottest 108 | . 40 76 101 50 105 5 108 28 . 57 Shots Fired 624 | . 58 88 184 26 210 2 32 5 . 19 Gun 549 | . 58 88 158 26 199 . 13 4 . 3 Cannon 10 | . . . . . . . 4 . . 6 Launcher 39 | . . . 26 . 6 . 7 . . . Special 26 | . . . . . 5 2 8 1 . 10 Kinetic 536 | . 58 80 154 26 191 . 14 4 . 9 Thermal 21 | . . 8 2 . 8 . 3 . . . Explosive 35 | . . . 26 . 2 . 7 . . . Electromagnetic 6 | . . . 2 . 4 . . . . . Robot Hit Streak 19 | . 4 14 14 12 19 . 8 8 . 4 Robot Miss Streak 6 | . 4 6 3 2 5 2 2 . . 1 Penetration Max . | . . . . . . . . . . . Secondary Targets 12 | . 2 1 1 1 7 . . . . . Max Gunslinging Chain 1 | . 1 1 1 1 1 . . . . . Shots Hit Robots 371 | . 27 54 117 21 120 . 20 5 . 7 Core Hits 221 | . 10 21 98 9 66 . 16 1 . . Critical Kills . | . . . . . . . . . . . Critical Parts Destroyed 1 | . 1 . . . . . . . . . Critical Strikes 1 | . 1 . . . . . . . . . Destroy 1 | . 1 . . . . . . . . . Melee Attacks 7 | . . . . . 7 . . . . . Impact . | . . . . . . . . . . . Slashing 7 | . . . . . 7 . . . . . Piercing . | . . . . . . . . . . . Sneak Attacks . | . . . . . . . . . . . Combat Hostiles . | . . . . . . . . . . . Follow-up Attacks . | . . . . . . . . . . . Damage Inflicted 8883 | . 293 600 4187 366 2478 . 873 86 . . Guns 5561 | . 292 599 1864 366 2114 . 240 86 . . Cannons 100 | . . . . . . . 100 . . . Explosions 3216 | . . . 2323 . 360 . 533 . . . Melee . | . . . . . . . . . . . Ramming 6 | . 1 1 . . 4 . . . . . Kinetic 5395 | . 292 527 1829 366 2006 . 289 86 . . Thermal 231 | . . 72 . . 108 . 51 . . . Explosive 3032 | . . . 2323 . 176 . 533 . . . Electromagnetic 219 | . . . 35 . 184 . . . . . Impact . | . . . . . . . . . . . Slashing . | . . . . . . . . . . . Piercing . | . . . . . . . . . . . Highest Corruption 2 | . . 2 . . . . 1 1 1 1 Average Corruption 1 | . . 2 . . . . 1 1 1 1 Corruption Purged . | . . . . . . . . . . . Corruption Blocked . | . . . . . . . . . . . Effects 19 | . . 5 . . . . 1 5 2 6 Message Errors 4 | . . 1 . . . . . 2 . 1 Matter Fused 4 | . . 1 . . . . . 1 1 1 Heat Flow Errors 3 | . . . . . . . 1 1 . 1 Energy Discharges 6 | . . 3 . . . . . . 1 2 Misfires 1 | . . . . . . . . . . 1 Alerts 1 | . . . . . . . . 1 . . Overload Shots . | . . . . . . . . . . . Overflow Damage 101 | . . . 78 . 23 . . . . . Projectiles . | . . . . . . . . . . . Explosions 101 | . . . 78 . 23 . . . . . Melee . | . . . . . . . . . . . Knockbacks 1 | . . . . . . . 1 . . . Impact . | . . . . . . . . . . . Kinetic 1 | . . . . . . . 1 . . . Secondary . | . . . . . . . . . . . Self-Inflicted Damage 185 | . . . 98 . 72 . 15 . . . Shots 7 | . . . 5 . 1 . 1 . . . Rammed 3 | . 1 1 . . 1 . . . . . Targets Rammed 3 | . 1 1 . . 1 . . . . . Kicked . | . . . . . . . . . . . Crushed . | . . . . . . . . . . . Highest Temperature 242 | . 24 44 57 2 220 . 242 236 . 173 Average Temperature 41 | . 8 14 18 2 71 . 65 114 . 30 Received Heat Transfer 2286 | . 78 243 495 117 1116 12 81 27 . 117 Effects 1 | . . . . . 1 . . . . . Energy Bleed 1 | . . . . . 1 . . . . . Siege Activations . | . . . . . . . . . . . Robots Corrupted . | . . . . . . . . . . . Combat Hostiles . | . . . . . . . . . . . Parts Fried 1 | . . . . . 1 . . . . . Impact Corruptions . | . . . . . . . . . . . Robots Melted . | . . . . . . . . . . . Combat Hostiles . | . . . . . . . . . . . Parts Melted 4 | . . 3 . . 1 . . . . . Heat Transferred 560 | . . 185 . . 250 . 125 . . . Parts Sabotaged . | . . . . . . . . . . . Parts Stolen . | . . . . . . . . . . . Parts Stripped . | . . . . . . . . . . . Power Chain Reactions 1 | . . . . . 1 . . . . . Alert | -11 -10 -9 -8 -7 -7 -7 -7 -7 -7 -6 ------- Run | Yrd Mat Mat Mat Fac Gar Fac Low Low Zio Pro Peak Influence 2308 | . 180 346 996 516 2308 1335 . . . . Initial 1211 | . . 76 91 424 231 1211 . . . . Average 826 | . 88 233 580 456 1175 1266 . . . . Maximum Alert Level 5 | . . 1 3 2 5 4 . . . . Low Security (%) 12 | 100 100 29 16 . . . . . . . Level 1 16 | . . 70 14 3 10 . . . . . Level 2 21 | . . . 33 96 15 . . . . . Level 3 15 | . . . 35 . 12 . . . . . Level 4 22 | . . . . . 33 100 . . . . Level 5 11 | . . . . . 27 . . . . . High Security . | . . . . . . . . . . . Max Security . | . . . . . . . . . . . Squads Dispatched 10 | . 2 . 7 . . 1 . . . . Investigation 1 | . . . 1 . . . . . . . Extermination 1 | . . . . . . 1 . . . . Reinforcement 5 | . 2 . 3 . . . . . . . Assault 3 | . . . 3 . . . . . . . Garrison . | . . . . . . . . . . . Intercept . | . . . . . . . . . . . Searches Triggered . | . . . . . . . . . . . Construction Impeded 1 | . . . 1 . . . . . . . Haulers Reinforced . | . . . . . . . . . . . Active Scanning Responses . | . . . . . . . . . . . Cargo Convoy Interrupts . | . . . . . . . . . . . Stealth | -11 -10 -9 -8 -7 -7 -7 -7 -7 -7 -6 --------- Run | Yrd Mat Mat Mat Fac Gar Fac Low Low Zio Pro Distress Signals 3 | . . 1 1 . . . 1 . . . Communications Jammed . | . . . . . . . . . . . Distress Signals . | . . . . . . . . . . . Times Spotted 181 | . 11 15 64 4 51 7 17 4 . 8 Peak Tracking Total 8 | . 5 8 7 4 8 2 5 4 . 7 Tactical Retreats 14 | . . 3 1 . 10 . . . . . Traps | -11 -10 -9 -8 -7 -7 -7 -7 -7 -7 -6 ------- Run | Yrd Mat Mat Mat Fac Gar Fac Low Low Zio Pro Traps Triggered 9 | . . 1 1 . 6 1 . . . . Indirectly . | . . . . . . . . . . . Trap Hack Attempts . | . . . . . . . . . . . Triggered . | . . . . . . . . . . . Disarmed . | . . . . . . . . . . . Reprogrammed . | . . . . . . . . . . . Reused 9 | . . . . . 9 . . . . . Traps Extracted . | . . . . . . . . . . . Installed 16 | . . . . . 16 . . . . . Triggered 9 | . . . . . 9 . . . . . Most Traps Carried 9 | . . . . . 9 . . . . . Machines | -11 -10 -9 -8 -7 -7 -7 -7 -7 -7 -6 ---------- Run | Yrd Mat Mat Mat Fac Gar Fac Low Low Zio Pro Machines Disabled 14 | . . . 4 . 7 1 1 . . 1 Max in Single Turn 2 | . . . 2 . 2 . 1 . . 1 Garrison Relay 2 | . . . . . 2 . . . . . Phase Generator 1 | . . . . . 1 . . . . . Machines Repaired . | . . . . . . . . . . . Machines Dismantled . | . . . . . . . . . . . Machines Sabotaged . | . . . . . . . . . . . Overloaded Fab Kills . | . . . . . . . . . . . Hacking | -11 -10 -9 -8 -7 -7 -7 -7 -7 -7 -6 --------- Run | Yrd Mat Mat Mat Fac Gar Fac Low Low Zio Pro Machines Accessed 9 | . 1 2 2 1 2 . . 1 . . Terminals 7 | . 1 2 2 . 2 . . . . . Fabricators . | . . . . . . . . . . . Repair Stations . | . . . . . . . . . . . Recycling Units . | . . . . . . . . . . . Scanalyzers . | . . . . . . . . . . . Garrison Access 1 | . . . . 1 . . . . . . Total Hacks 16 | . 2 6 3 2 2 . . 1 . . Successful 9 | . 1 4 . 1 2 . . 1 . . Failed 7 | . 1 2 3 1 . . . . . . Catastrophic 2 | . . 1 1 . . . . . . . Database Lockouts . | . . . . . . . . . . . Manual 8 | . . 4 3 . . . 1 . . . Terminals 13 | . 2 6 3 . 2 . . . . . Fabricators . | . . . . . . . . . . . Repair Stations . | . . . . . . . . . . . Recycling Units . | . . . . . . . . . . . Scanalyzers . | . . . . . . . . . . . Garrison Access 2 | . . . . 2 . . . . . . Terminal Hacks 8 | . 1 4 . . 2 . . 1 . . Robot Analysis 2 | . . 2 . . . . . . . . Open Door 2 | . . . . . 1 . . 1 . . Branch Access Points 1 | . . 1 . . . . . . . . Locate Traps 1 | . 1 . . . . . . . . . Zone Layout 1 | . . 1 . . . . . . . . Garrison Registry 1 | . . . . . 1 . . . . . Fabricator Hacks . | . . . . . . . . . . . Repair Station Hacks . | . . . . . . . . . . . Recycling Unit Hacks . | . . . . . . . . . . . Scanalyzer . | . . . . . . . . . . . Garrison Access Hacks 1 | . . . . 1 . . . . . . Unlock Access 1 | . . . . 1 . . . . . . Unauthorized Hacks . | . . . . . . . . . . . Terminals . | . . . . . . . . . . . Fabricators . | . . . . . . . . . . . Repair Stations . | . . . . . . . . . . . Recycling Units . | . . . . . . . . . . . Scanalyzers . | . . . . . . . . . . . Garrison Access . | . . . . . . . . . . . Data Cores Recovered 1 | . . . 1 . . . . . . . Used . | . . . . . . . . . . . Hacking Detections 6 | . 1 1 2 1 1 . . . . . Full Trace Events . | . . . . . . . . . . . Feedback Events . | . . . . . . . . . . . Feedback Blocked . | . . . . . . . . . . . Robot Schematics Acquired . | . . . . . . . . . . . Robots Built . | . . . . . . . . . . . Authchips . | . . . . . . . . . . . Time . | . . . . . . . . . . . Total Robot Build Rating . | . . . . . . . . . . . Part Schematics Acquired . | . . . . . . . . . . . Parts Built . | . . . . . . . . . . . Authchips . | . . . . . . . . . . . Time . | . . . . . . . . . . . Total Part Build Rating . | . . . . . . . . . . . Parts Repaired . | . . . . . . . . . . . Time . | . . . . . . . . . . . Parts Recycled . | . . . . . . . . . . . Recycled Matter . | . . . . . . . . . . . Retrieved Matter . | . . . . . . . . . . . Retrieved Components . | . . . . . . . . . . . Parts Scanalyzed . | . . . . . . . . . . . Part Schematics Acquired . | . . . . . . . . . . . Parts Damaged . | . . . . . . . . . . . Bothacking | -11 -10 -9 -8 -7 -7 -7 -7 -7 -7 -6 ------------ Run | Yrd Mat Mat Mat Fac Gar Fac Low Low Zio Pro Used RIF Installer 2 | . . . . . 2 . . . . . Patrol Navigation 1 | . . . . . 1 . . . . . Robots Hacked 14 | . . . . . 3 . 5 1 . 5 Non-combat . | . . . . . . . . . . . Combat 14 | . . . . . 3 . 5 1 . 5 Robot Hacks Applied 18 | . . . . . 5 . 5 1 . 7 parse_system 1 | . . . . . . . 1 . . . scatter_targeting 1 | . . . . . 1 . . . . . mark_system 1 | . . . . . 1 . . . . . overload_power 1 | . . . . . 1 . . . . . amplify_resonance 4 | . . . . . 1 . 1 . . 2 overwrite_iff 4 | . . . . . 1 . . 1 . 2 streamctrl_high 2 | . . . . . . . . . . 2 formatsys_high 4 | . . . . . . . 3 . . 1 Relay Couplers Released 9 | . . . . . 9 . . . . . Machine Destruction 9 | . . . . . 9 . . . . . Attached 8 | . . . . . 1 1 2 1 . 3 Fabnet Peak Effective % . | . . . . . . . . . . . Robots Rewired . | . . . . . . . . . . . Allies Hacked 1 | . . . . . . 1 . . . . Hacks Repelled . | . . . . . . . . . . . Allies | -11 -10 -9 -8 -7 -7 -7 -7 -7 -7 -6 -------- Run | Yrd Mat Mat Mat Fac Gar Fac Low Low Zio Pro Total Allies 17 | . . . . . 5 3 3 1 . 5 Largest Group 5 | . . . . . 2 5 4 3 . 2 Highest-Rated Group 232 | . . . . . 142 232 168 117 . 49 Highest-Rated Ally 80 | . . . . . 80 80 80 46 . 49 Total Orders . | . . . . . . . . . . . Ally Attacks 110 | . . . . . 20 33 34 11 . 12 Total Damage 2144 | . . . . . 440 575 668 316 . 145 Kills 15 | . . . . . 2 6 2 4 . 1 Allies Corrupted . | . . . . . . . . . . . Allies Melted . | . . . . . . . . . . . Intel | -11 -10 -9 -8 -7 -7 -7 -7 -7 -7 -6 ------- Run | Yrd Mat Mat Mat Fac Gar Fac Low Low Zio Pro Robot Analysis Total 2 | . . 2 . . . . . . . . Derelict Logs Recovered 1 | . . . . . . . . . . 1 Drone Launches . | . . . . . . . . . . . Drone Recoveries . | . . . . . . . . . . . Exploration | -11 -10 -9 -8 -7 -7 -7 -7 -7 -7 -6 ------------- Run | Yrd Mat Mat Mat Fac Gar Fac Low Low Zio Pro Turns Passed 9531 | 5 324 778 2015 416 3118 596 876 522 185 696 Spaces Moved 4262 | 5 153 380 973 227 1220 242 357 262 99 344 Core 2 | . . . . . 2 . . . . . Treads 3178 | . 113 380 973 227 1178 242 65 . . . Legs 1042 | 5 40 . . . . . 292 262 99 344 Wheels 40 | . . . . . 40 . . . . . Hover . | . . . . . . . . . . . Flight . | . . . . . . . . . . . Fastest Speed 110 | 120 120 160 160 163 130 240 190 186 186 110 Average Speed 187 | 120 149 160 161 163 212 240 204 190 186 184 Slowest Speed 750 | 120 160 160 163 166 750 240 400 260 186 186 Overloaded Moves . | . . . . . . . . . . . Propulsion Burnouts . | . . . . . . . . . . . Robots Hopped . | . . . . . . . . . . . Cave-ins Triggered . | . . . . . . . . . . . Exploration Rate (%) 40 | 2 30 27 93 9 90 12 64 41 10 68 Regions Visited 10 Branch Regions 4 Pre-discovered Areas . | . . . . . . . . . . . Known Exits Taken 4 | . . 1 1 1 . 1 . . . . Unknown Exits Taken 5 | 1 1 . . . . . 1 1 1 . Scrap Searched 8 | . . . . . . . . 2 1 5 Spaces Dug 2 | . . . . . . . . . . 2 Terrain Destroyed 284 | . . . 130 . 74 . 76 . . 4 Melee . | . . . . . . . . . . . Projectile 5 | . . . . . . . 1 . . 4 AOE 279 | . . . 130 . 74 . 75 . . . Terrain Rammed . | . . . . . . . . . . . Walls Destroyed . | . . . . . . . . . . . Machines Disabled . | . . . . . . . . . . . Actions | -11 -10 -9 -8 -7 -7 -7 -7 -7 -7 -6 --------- Run | Yrd Mat Mat Mat Fac Gar Fac Low Low Zio Pro Total 5306 | 4 196 468 1291 257 1588 258 468 280 101 395 Wait 377 | . 4 3 135 7 121 13 66 8 . 20 Move 4253 | 4 152 379 972 227 1219 241 356 261 98 344 Hop . | . . . . . . . . . . . Pick Up 74 | . 3 5 23 1 34 . 2 2 2 2 Fast Attach 38 | . 2 8 9 2 12 . 3 1 . 1 Attach 46 | . 2 4 8 3 20 1 3 1 . 4 Detach 6 | . . . 1 . 3 1 1 . . . Swap 38 | . . 1 19 . 5 . 11 1 . 1 Drop 60 | . 3 3 18 4 24 . 1 1 1 5 Fire 384 | . 29 64 106 13 122 2 25 5 . 18 Melee 7 | . . . . . 7 . . . . . Ram . | . . . . . . . . . . . Kick . | . . . . . . . . . . . Crush 3 | . 1 1 . . 1 . . . . . Escape Stasis 4 | . . . . . 4 . . . . . Rewire . | . . . . . . . . . . . Trap 16 | . . . . . 16 . . . . . Miscellaneous . | . . . . . . . . . . . Route ------- -11/Scrapyard -10/Materials -9/Materials (discovered 3 exits: *Mat / Min x2) -8/Materials (discovered 3 exits: *Fac x3) -7/Factory -7/Garrison (discovered 3 exits: *Fac x3) -7/Factory -7/Lower Caves -7/Lower Caves -7/Zion -6/Proximity Caves History --------- Turn | Location | Event 1 | -11/Scrapyard | Discovered new exit (range 3) 6 | -11/Scrapyard | Entered Materials 309 | -10/Materials | Discovered new exit (range 3) 317 | -10/Materials | Build established: Mutant 330 | -10/Materials | Entered another Materials area 330 | -9/Materials | Evolved 2 slots: Utility x2 446 | -9/Materials | Lost 6 parts (1p2n1u2w) 669 | -9/Materials | Identified exit to Mines 729 | -9/Materials | Discovered new exit (range 4) 789 | -9/Materials | Build established: Scavenger-Mutant 845 | -9/Materials | Core integrity fell below 50% 1106 | -9/Materials | Identified exit to Materials 1108 | -9/Materials | Entered another Materials area 1108 | -8/Materials | Evolved 2 slots: Propulsion x1, Utility x1 1836 | -8/Materials | Discovered new exit (range 9) 2143 | -8/Materials | Discovered new exit (range 15) 2308 | -8/Materials | First assault squad dispatched 2533 | -8/Materials | Lost 5 parts (1p2n1u1w) 2589 | -8/Materials | Core integrity fell below 50% 2703 | -8/Materials | Discovered new exit (range 5) 3121 | -8/Materials | Identified exit to Factory 3123 | -8/Materials | Entered Factory 3123 | -7/Factory | Evolved 2 slots: Power x1, Utility x1 3478 | -7/Factory | Build established: Scavenger-Skirmisher 3539 | -7/Factory | Identified exit to Garrison 3539 | -7/Factory | Entered Garrison 3553 | -7/Garrison | Triggered checkpoint 3719 | -7/Garrison | Triggered checkpoint 3783 | -7/Garrison | Build established: Skirmisher 4084 | -7/Garrison | Triggered checkpoint 4109 | -7/Garrison | Triggered checkpoint 4449 | -7/Garrison | Triggered checkpoint 4453 | -7/Garrison | Triggered checkpoint 4520 | -7/Garrison | Destroyed 8 combat bots 4527 | -7/Garrison | Lost 7 parts (1p3n1u2w) 4660 | -7/Garrison | Build established: Mutant 4957 | -7/Garrison | Installed Relay Interface Framework 4995 | -7/Garrison | Discovered new exit (range 33) 4995 | -7/Garrison | Discovered new exit (range 19) 4995 | -7/Garrison | Discovered new exit (range 56) 5021 | -7/Garrison | Build established: Scavenger-Mutant 5133 | -7/Garrison | Triggered checkpoint 5222 | -7/Garrison | Rescued a captive Derelict 5225 | -7/Garrison | Rescued a captive Derelict 5650 | -7/Garrison | Identified exit to Factory 5715 | -7/Garrison | Phase Generator disabled 5835 | -7/Garrison | Triggered checkpoint 5850 | -7/Garrison | Core integrity fell below 50% 5920 | -7/Garrison | Lost 7 parts (1p3n1u2w) 5995 | -7/Garrison | Expanded RIF knowledge: Patrol Navigation 6033 | -7/Garrison | Garrison Relay disabled 6288 | -7/Garrison | Triggered checkpoint 6314 | -7/Garrison | Garrison Relay disabled 6378 | -7/Garrison | Found embedded Infiltrators 6632 | -7/Garrison | Build established: Bothacker-Mutant 6657 | -7/Garrison | Entered Factory 6657 | -7/Factory | Accompanied by 2 allies 6868 | -7/Factory | Allied Derelicts emerged from ambush trap array 7203 | -7/Factory | Discovered new exit (range 16) 7239 | -7/Factory | Identified exit to Lower Caves 7253 | -7/Factory | Entered Lower Caves 7253 | -7/Lower Caves | Accompanied by 4 allies 7262 | -7/Lower Caves | Ambushed by wild Derelicts 7308 | -7/Lower Caves | Lost 4 allies 7375 | -7/Lower Caves | Acquired the password to a Derelict Tinkerer's latest research 7393 | -7/Lower Caves | Found Prototype Special Weapon 7449 | -7/Lower Caves | Core integrity fell below 20% 7477 | -7/Lower Caves | Lost 3 parts (1p1n1u) 7601 | -7/Lower Caves | P-70 Sage assimilated allied 3X-X2G(r) 7605 | -7/Lower Caves | Caught by Unaware searching for contraband prototypes 7628 | -7/Lower Caves | Caught by Unaware searching for contraband prototypes 7985 | -7/Lower Caves | Encountered a Warlord checkpoint 8029 | -7/Lower Caves | Discovered new exit (range 16) 8129 | -7/Lower Caves | Entered another Lower Caves area 8129 | -7/Lower Caves | Accompanied by 2 allies 8562 | -7/Lower Caves | Discovered new exit (range 15) 8651 | -7/Lower Caves | Entered Zion 8790 | -7/Zion | Discovered new exit (range 17) 8802 | -7/Zion | Found CR-A16's Pointy Stick 8836 | -7/Zion | Entered Proximity Caves 9123 | -6/Proximity Caves | Learned Factory stockpile data 9208 | -6/Proximity Caves | Found DCF Scrap (12 items) 9382 | -6/Proximity Caves | Attracted the attention of an 0b10 base 9443 | -6/Proximity Caves | Lost 4 allies 9532 | -6/Proximity Caves | Spotted B-75 Beast 9532 | -6/Proximity Caves | Destroyed by B-75 Beast with Heavy Machine Gun Last Messages --------------- 09412_ Slug penetrates G-50 Soldier. 09412_ G-50 Soldier destroyed. 09416_ Jacked Y-64 Sentinel... >>formatsys_high Rerouting network defenses. Erasing system data. Installing primary routines, ETC: 6. 09420_ Hvy. Laser fries itself beyond repair. 09422_ Sentinel 5a reactivates. 09426_ Acquired 54 matter. 09429_ Acquired Lgt. Nuclear Core. 09430_ Acquired 16 matter. 09451_ Dropped Prc. Assault Rifle. 09452_ HV Slug penetrates Storage Shell. 09464_ HV Slug penetrates Wall. 09466_ HV Slug penetrates Storage Shell. 09466_ Storage Shell breached. 09466_ HV Slug penetrates Wall. 09472_ Acquired Hvy. Plasma Cannon. 09495_ Discarded Relay Coupler [Grunt]. Map ----- +----------------------------------------------------+ | ?????????????????????????????????????????????????? | | ?????????????????????????????????????????????????? | | ?????????????????????????????????????????????????? | | ?????????????????????????????????????????????????? | | ?????????????????????????????????????????????????? | | ?????????????????????????????????????????????????? | | ?????????????????????????????????????????????????? | | ?????????????????????????????????????????????????? | | ?????????????????????????????????????????????????? | | ?????????????????????????????????????????????????? | | ?????????????????????????????????????????????????? | | ?????????????????????????????????????????????????? | | ???##?????????????????????????????????? ?????????? | | ?? ##???????????????????????????????? ????????? | | ? #??????????????????????????????? ????????? | | ???????????????????????????### % %????????? | | ??##?????????????????????? % ???????? | | #??? ##???????????????????? % ?????????? | | ???# ##??????????#####??? % %#??????????? | | #?## ####???????#; ##?# #??????????? | | #???## ? ?# ????#### ## ##?????????? | | ???## ? #?# ???## %% #?????????? | | ???# ## #?# ???# %% ???????????? | | ???# #"#??# ##?# %%#??????????????? | | ???# ##??# #?# ##?????????????? | | ####%[ ##?# #???# @ #?????????????? | | ![ * ### #?### #????????????? | | =%= [ ## ### Y #; #????????????? | | ###+#### ### #????????????? | | %= "# ##?? ????????? | | %% # # ### #???? ??????? | | # # ## #?## ##???? ### #??????? | | # ###### #??###?????? BB #????#??????? | | # #????# #??????????? BB ##???????????? | | + #????# #???????????? ##????????????? | | ["""# ####?# #???????????? ;#????????????? | | "]]# ## ### #????????????? ????????????? | | ]# ## ##???????????? ???????????? | | ######"# ##???????????? !??????????? | | ## #???????????? %?????????? | | # #????????????? ???????????? | | # ####"## #???????????? ??????????????? | | #???###### #????????????????????????????? | | ?????????# #????????????????????????????? | | ??????????# ##????????????????????????????? | | ?????????? ##?????????????????????????????? | | ???????????# ###??????????????????????????????? | | ????????????####????????????????????????????????? | | ????????????????????????????????????????????????? | | ?????????????????????????????????????????????????? | +----------------------------------------------------+ Best States ------------- Heat Dissipation 48 Energy Generation 34 Energy Capacity 280 Matter Stores 318 Matter Capacity 500 Sight Range 20 Robot Scan Range 15 Terrain Scan Density 10 Armor Coverage 225 Evasion (%) 55 Targeting Accuracy 8 Recoil Reduction 3 Kinecelleration 30 Relay Coupler Types 4 Relay Coupler Value 75 Item Schematics ----------------- None Robot Schematics ------------------ None Fabricated ------------ Nothing Alien Tech Used ----------------- None Achievements -------------- None Challenges ------------ None Game ------ Seed ThrusterTrapBotcube Manual? 0 Play Time 00:49:29 Cumulative 119.9 hours Start 2024.09.01 @ 14:03:50 End 2024.09.02 @ 11:09:45 Sessions 3 Manual Loads 0 Difficulty Rogue Special Mode None Game No. 194 Rogue 193 Adventurer 1 Explorer 0 Win Type - Total 1 Types 1/0/0/0/0/0/0/0/0 Lore% 63 Gallery% 66 Achievement% 50 Wizard Run 0 Options --------- Layout 1 ASCII 0 Keyboard 0 Movement Mouse Keybinds 0 Fullscreen 2 Font 20/SmallcapsGlow Map View 54x42 Zoom Use 0% Tactical HUD 1 Map Filters NONE Filters NONE Steam 0 RUN: dc97ca63-bc33-437b-941f-1b8676b68528